[Event "Danish Skakligaen 2024-25"]
[Site "Denmark"]
[Date "2024.11.03"]
[Round "2.1"]
[White "Ochsner, Bjorn Moller"]
[Black "Mikkelsen, Nikolaj"]
[Result "1-0"]
[ECO "C79"]
[WhiteElo "2512"]
[BlackElo "2477"]
[Annotator "TA"]
[PlyCount "81"]
[EventDate "2024.11.02"]
[EventType "team-tourn"]
[EventCountry "DEN"]
[SourceTitle "playchess.com"]
[Source "ChessBase"]
[SourceQuality "1"]
[TimeControl "40/5400+30:1800+30"]

{[%evp 15,81,35,36,21,27,24,41,43,52,31,51,48,41,45,47,38,54,27,35,19,17,0,0,12,41,45,43,43,78,40,49,41,80,33,52,58,104,75,77,43,31,18,98,99,402,131,134,140,425,425,425,422,433,429,438,434,436,439,610,603,709,730,717,710,1652,1414,1529,1418]} 1. e4 {[%emt 0:00:20]} e5 {[%emt 0:00:15]} 2. Nf3 {[%emt 0:00:12]} Nc6 {[%emt 0:00:07]} 3. Bb5 {[%emt 0:00:04]} a6 {[%emt 0:00:10]} 4. Ba4 {[%emt 0:00:10]} Nf6 {[%emt 0:00:12]} 5. O-O {[%emt 0:00:49]} d6 {[%emt 0:00:30]} 6. Re1 {[%emt 0:00:23]} Bd7 {[%emt 0:00:11]} 7. c3 {[%emt 0:00:19]} g6 {[%emt 0:00:22]} 8. d4 {[%emt 0:00:12]} Bg7 {[%emt 0:00:07]} 9. h3 {[%emt 0:00:20]} O-O {[%emt 0:00:22]} 10. Bc2 {[%emt 0:00:44]} Nh5 {[%emt 0:01:39]} 11. a4 {[%emt 0:00:37][%cal Ba2a4,Ba4a5][%mdl 32] White is slightly better.} Qe8 {[%emt 0:00:57]} 12. a5 {[%emt 0:01:03]} Kh8 {[%emt 0:06:24]} 13. Ra3 {[%emt 0:00:54]} f5 {[%emt 0:06:10]} 14. d5 {[%emt 0:00:30]} Nd8 {[%emt 0:14:00]} 15. c4 {[%emt 0:04:10]} f4 {[%emt 0:01:54]} 16. Ba4 {[%emt 0:10:47]} Nf7 {[%emt 0:09:36]} 17. Bxd7 {[%emt 0:22:26]} Qxd7 {[%emt 0:00:08]} 18. Rc3 {[%emt 0:01:56]} Nf6 {[%emt 0:07:21]} 19. c5 {[%emt 0:00:52]} Rg8 {[%emt 0:01:02]} 20. cxd6 {[%emt 0:14:41]} cxd6 {[%emt 0:00:43]} 21. Nbd2 {[%emt 0:00:32]} Raf8 {[%emt 0:16:43]} 22. Qc2 {[%emt 0:07:53]} Ne8 {[%emt 0:00:36]} 23. Nc4 {[%emt 0:01:39]} Qe7 {[%emt 0:05:04]} 24. Nb6 {[%emt 0:01:10]} ({White should try} 24. Bd2 $16) 24... h5 {[%emt 0:03:47]} 25. Qa4 {[%emt 0:08:28]} Nd8 {[%emt 0:18:26]} (25... Nh6 $14) 26. Bd2 $16 {[%emt 0:08:53]} Rf7 {[%emt 0:01:27]} 27. Rec1 {[%emt 0:03:13]} Bf6 {[%emt 0:00:55]} 28. Nh2 {[%emt 0:03:34]} Rgg7 {[%emt 0:01:50]} (28... g5 $11) 29. Rc8 $36 {[%emt 0:01:32][%cal Oc8d8][%mdl 2048] Hoping for Rxd8! White is in control.} g5 $2 {[%emt 0:00:53][%mdl 8192]} (29... Rg8 $16 {is a better chance.} 30. Rb8 Nc7) 30. Rb8 $2 {[%emt 0:02:22]} (30. Rxd8 $18 {and the rest is easy.} Qxd8 31. Rc8) 30... Nc7 {[%emt 0:00:28]} 31. Bb4 {[%emt 0:01:00] Strongly threatening Qd1. White has more active pieces. Black is weak on the light squares} Nb5 $2 {[%emt 0:01:03][%mdl 8192] [#] This costs Black the game.} (31... Qf8 $16 32. Qd1 g4 33. hxg4 Nb5) 32. Rxd8+ $1 $18 {[%emt 0:01:19][%mdl 512] White is clearly winning.} Qxd8 {[%emt 0:00:05]} 33. Rc8 {[%emt 0:00:04]} Rc7 {[%emt 0:01:04]} 34. Rxd8+ {[%emt 0:00:23]} Bxd8 {[%emt 0:00:02]} 35. Qd1 {[%emt 0:01:02]} Rh7 {[%emt 0:01:59]} 36. b3 {[%emt 0:00:20]} Rcg7 {[%emt 0:01:24]} 37. Nc4 {[%emt 0:00:54]} Rg6 {[%emt 0:00:22]} 38. Qa1 {[%emt 0:01:55]} Bc7 {[%emt 0:00:37]} 39. Nf3 {[%emt 0:00:30]} Re7 {[%emt 0:00:21] [#]} 40. Nfxe5 $1 {[%emt 0:00:33][%mdl 512]} Rxe5 {[%emt 0:00:17] [#]} 41. Bxd6 $1 {[%emt 0:30:30][%mdl 512] Weighted Error Value: White=0.25 (precise) /Black=0.54.  Loses game:     	---       	Black=2      Missed win:     	White=1     	---        Mistake:       	White=1     	Black=2      Inaccurate:     	White=3     	Black=4      OK:         	White=12    	Black=6      Best:        	White=1     	---} 1-0

[Event "Danish Skakligaen 2024-25"]
[Site "Denmark"]
[Date "2024.11.03"]
[Round "2.1"]
[White "Rozentalis, Eduardas"]
[Black "Grandelius, Nils"]
[Result "0-1"]
[ECO "B51"]
[WhiteElo "2489"]
[BlackElo "2645"]
[Annotator "TA"]
[PlyCount "110"]
[EventDate "2024.11.02"]
[EventType "team-tourn"]
[EventCountry "DEN"]
[SourceTitle "playchess.com"]
[Source "ChessBase"]
[SourceQuality "1"]
[TimeControl "40/5400+30:1800+30"]

{[%evp 31,110,-45,-55,-44,-56,-52,-55,-53,-58,-53,-52,-59,0,-45,0,-40,-36,-36,-39,-43,0,-43,-36,-43,-43,-42,-43,-147,-150,-164,-155,-151,-144,-145,-144,-172,-162,-162,-162,-179,-193,-193,-185,-186,-179,-179,-171,-310,-300,-300,-288,-482,-316,-510,-501,-488,-313,-483,-479,-481,-395,-622,-608,-690,-569,-2170,-2344,-2446,-1170,-2495,-2227,-2291,-1452,-6211,-5939,-5785,-6643,-6323,-6295,-6191,-6215]} 1. e4 {[%emt 0:00:03]} c5 {[%emt 0:00:43]} 2. Nf3 {[%emt 0:00:44]} d6 {[%emt 0:00:11]} 3. Bb5+ {[%emt 0:01:17]} Nd7 {[%emt 0:01:00]} 4. d4 {[%emt 0:07:44]} cxd4 {[%emt 0:00:41]} 5. Qxd4 {[%emt 0:00:09]} a6 {[%emt 0:00:29]} 6. Bxd7+ {[%emt 0:00:28]} Bxd7 {[%emt 0:00:08]} 7. c4 {[%emt 0:01:15] B51: Sicilian: Moscow Variation (3 Bb5+) without 3...Bd7.} Nf6 {[%emt 0:01:14]} 8. Nc3 {[%emt 0:02:01]} g6 {[%emt 0:02:01]} 9. Bg5 {[%emt 0:07:36]} Bg7 {[%emt 0:01:13]} 10. Nd5 {[%emt 0:01:15]} O-O {[%emt 0:04:45]} 11. Bxf6 {[%emt 0:05:27]} exf6 {[%emt 0:00:09]} 12. O-O {[%emt 0:00:27]} f5 $146 {[%emt 0:08:07]} ({Predecessor:} 12... Re8 13. Rfe1 f5 14. e5 dxe5 15. Nxe5 Bc6 16. Nxc6 Bxd4 17. Nxd8 Raxd8 18. Kf1 Kg7 19. Rxe8 Rxe8 {½-½ Munoz Pantoja,M (2450)-Garriga Cazorla,P (2477) Barbera del Valles 2nd 2021 (7)}) 13. e5 {[%emt 0:00:26]} dxe5 {[%emt 0:06:52]} 14. Nxe5 {[%emt 0:00:15]} Bc6 {[%emt 0:01:40]} 15. Rad1 {[%emt 0:05:08]} Re8 {[%emt 0:12:24]} 16. Rfe1 {[%emt 0:05:52]} Bxd5 {[%emt 0:08:55]} 17. cxd5 {[%emt 0:07:14]} Qd6 {[%emt 0:02:44]} 18. f4 {[%emt 0:00:29]} Re7 {[%emt 0:02:49]} 19. Re3 {[%emt 0:06:55]} Rae8 {[%emt 0:03:19]} 20. Rde1 {[%emt 0:00:48]} Rd8 {[%emt 0:01:32]} 21. Rd1 {[%emt 0:00:42]} Rde8 {[%emt 0:03:11]} 22. Rde1 {[%emt 0:00:16]} Rd8 {[%emt 0:01:16]} 23. Rd1 $1 {[%emt 0:00:23]} h5 {[%emt 0:04:26]} 24. h4 {[%emt 0:03:20]} Rde8 {[%emt 0:04:18]} 25. Rde1 {[%emt 0:02:48]} Rd8 {[%emt 0:00:14]} 26. Rd1 {[%emt 0:00:05]} Rc8 {[%emt 0:06:15]} 27. Re2 {[%emt 0:19:42]} Rce8 {[%emt 0:05:17]} 28. Rde1 {[%emt 0:00:45]} Rd8 {[%emt 0:00:24]} 29. Rd1 {[%emt 0:02:07] [#]} ({Better is} 29. Rd2 $1 $15) 29... f6 $1 $17 {[%emt 0:10:22]} 30. Nc4 {[%emt 0:02:26]} Qxd5 {[%emt 0:00:02]} 31. Qxd5+ {[%emt 0:08:10]} Rxd5 {[%emt 0:00:05]} 32. Rxd5 {[%emt 0:00:13]} Rxe2 {[%emt 0:00:02]} 33. Nd2 {[%emt 0:00:08]} Bf8 {[%emt 0:03:39]} 34. Kf1 {[%emt 0:00:49]} Re6 {[%emt 0:00:40]} 35. Kf2 {[%emt 0:04:36]} Rc6 {[%emt 0:03:39]} 36. Nb3 {[%emt 0:00:33]} Rc2+ {[%emt 0:01:32]} 37. Rd2 {[%emt 0:00:04]} Rxd2+ {[%emt 0:01:40]} 38. Nxd2 {[%emt 0:00:01]} Kf7 {[%emt 0:00:22]} 39. Ke2 {[%emt 0:01:26]} (39. Nf1 {is a better defense.}) 39... Ke6 $19 {[%emt 0:00:24]} 40. Kd3 {[%emt 0:00:24]} Bd6 {[%emt 0:01:02]} 41. g3 $2 {[%emt 0:30:59]} (41. Ke3) 41... Bc5 {[%emt 0:18:43]} 42. Nf1 $2 {[%emt 0:00:00]} (42. Ke2) 42... Kd5 $19 {[%emt 0:00:21]} 43. b3 {[%emt 0:00:00]} Bb6 {[%emt 0:02:19]} 44. Nd2 {[%emt 0:00:00]} (44. Ne3+ $142 Kc6 (44... Bxe3 45. Kxe3 Kc5 46. a3 $11) 45. Nd1) 44... Bf2 {[%emt 0:00:22]} 45. Nf1 {[%emt 0:00:00]} Kc5 {[%emt 0:01:01]} 46. Kc3 {[%emt 0:00:00]} (46. a3 $142) 46... a5 $19 {[%emt 0:02:40]} 47. Kd3 {[%emt 0:00:00]} Kb4 {[%emt 0:00:37]} 48. Kc2 {[%emt 0:00:00]} Ka3 {[%emt 0:00:12]} 49. Kb1 {[%emt 0:00:00]} a4 {[%emt 0:04:30]} (49... b5 $142 50. Ka1 a4 51. bxa4 Bd4+ (51... bxa4 $2 52. Kb1 $19) 52. Kb1 Kxa4 (52... bxa4 $2 53. Nd2 $19)) 50. bxa4 {[%emt 0:00:00]} Kxa4 {[%emt 0:00:03]} 51. Kb2 {[%emt 0:00:00]} Kb4 {[%emt 0:00:10]} 52. Kc2 {[%emt 0:00:00]} Ka3 {[%emt 0:00:07]} 53. Kb1 {[%emt 0:00:00]} b5 {[%emt 0:00:41]} 54. Ka1 {[%emt 0:00:00]} b4 {[%emt 0:00:18]} 55. Kb1 {[%emt 0:00:00]} b3 {[%emt 0:00:08]} 0-1

[Event "Danish Skakligaen 2024-25"]
[Site "Denmark"]
[Date "2024.11.03"]
[Round "2.1"]
[White "Hillarp Persson, Tiger"]
[Black "Andersen, Mads"]
[Result "1/2-1/2"]
[ECO "A08"]
[WhiteElo "2455"]
[BlackElo "2595"]
[Annotator "TA"]
[PlyCount "91"]
[EventDate "2024.11.02"]
[EventType "team-tourn"]
[EventCountry "DEN"]
[SourceTitle "playchess.com"]
[Source "ChessBase"]
[SourceQuality "1"]
[TimeControl "40/5400+30:1800+30"]

{[%evp 16,91,14,10,42,4,4,0,7,0,0,0,5,0,19,0,14,13,15,0,35,26,33,0,0,0,0,0,0,0,0,0,0,0,0,0,0,0,0,0,0,0,0,0,0,0,28,0,0,0,0,0,0,0,0,0,0,0,0,0,0,0,0,0,0,0,0,0,0,0,0,0,0,0,0,0,0,0]} 1. Nf3 {[%emt 0:00:02]} d5 {[%emt 0:00:08]} 2. g3 {[%emt 0:00:06]} c5 {[%emt 0:00:06]} 3. Bg2 {[%emt 0:00:22]} Nc6 {[%emt 0:00:09]} 4. d4 {[%emt 0:00:08]} e6 {[%emt 0:00:08]} 5. O-O {[%emt 0:00:45]} cxd4 {[%emt 0:00:21]} 6. Nxd4 {[%emt 0:00:09]} Bc5 {[%emt 0:00:14]} 7. Nxc6 {[%emt 0:01:39]} bxc6 {[%emt 0:00:03]} 8. c4 {[%emt 0:00:12]} Nf6 {[%emt 0:00:38]} 9. Qc2 {[%emt 0:01:32] E01: Catalan: Early deviations.} Qe7 $1 {[%emt 0:00:25][%mdl 4] is now more promising than 9...Be7.} 10. Nc3 {[%emt 0:08:42]} O-O $1 {[%emt 0:00:27]} 11. b3 {[%emt 0:00:54]} Ba6 {[%emt 0:08:18]} 12. Na4 {[%emt 0:06:53]} Bd6 {[%emt 0:05:30]} 13. Rd1 {[%emt 0:00:30]} Rac8 {[%emt 0:10:30]} 14. Bb2 {[%emt 0:04:19]} e5 {[%emt 0:05:42]} 15. e3 {[%emt 0:00:07]} Rfd8 {[%emt 0:01:25]} 16. Rac1 {[%emt 0:07:53]} h6 $146 {[%emt 0:06:44]} ({Predecessor:} 16... h5 17. Qf5 g6 18. Qg5 Qe6 19. Qh4 Ng4 20. cxd5 cxd5 21. Rxc8 Rxc8 22. h3 Nf6 {0-1 Poormosavi,S (2384)-Pranav,V (2611) Titled Tuesday intern op 12th Dec Early blitz 2023 (8)}) 17. h3 {[%emt 0:19:06]} Ba3 {[%emt 0:17:22]} 18. Bxa3 {[%emt 0:07:37]} Qxa3 {[%emt 0:00:05]} 19. Qc3 {[%emt 0:00:48]} dxc4 {[%emt 0:06:23]} 20. Qxe5 {[%emt 0:01:38]} cxb3 {[%emt 0:07:19]} 21. axb3 {[%emt 0:00:23]} Rxd1+ $1 {[%emt 0:00:33]} 22. Rxd1 {[%emt 0:00:07]} Qxb3 {[%emt 0:00:09]} 23. Ra1 {[%emt 0:02:00]} Bc4 {[%emt 0:08:19]} 24. Qd4 {[%emt 0:03:08]} Qc2 {[%emt 0:11:43]} 25. Nc5 {[%emt 0:02:26]} Rb8 {[%emt 0:01:17]} 26. e4 {[%emt 0:02:16]} Rb1+ {[%emt 0:04:40]} 27. Rxb1 {[%emt 0:00:09]} Qxb1+ {[%emt 0:00:02]} 28. Kh2 {[%emt 0:00:08]} Bf1 {[%emt 0:01:39]} 29. Bf3 {[%emt 0:13:51]} Qb6 {[%emt 0:00:22]} 30. e5 {[%emt 0:03:44]} Nd7 {[%emt 0:02:30]} 31. Qxd7 {[%emt 0:00:09]} (31. e6 {looks sharper.} fxe6 32. Qxd7 Qxc5 33. Qxe6+ Kf8 34. Bxc6 Qxf2+ 35. Kh1) 31... Qxc5 {[%emt 0:00:04]} 32. Qe8+ {[%emt 0:00:21]} (32. Bxc6 Qxf2+ (32... Qxe5 33. Bd5 $11) 33. Kh1 Be2 $17 (33... Qxg3 34. Qe8+ Kh7 35. Be4+ g6 36. Qxf7+ Kh8 37. Qxf1 $18)) 32... Qf8 {[%emt 0:00:10]} 33. Qxc6 {[%emt 0:00:14]} (33. Qxf8+ $2 Kxf8 34. Bxc6 a6 $19) 33... Qe7 {[%emt 0:02:08]} 34. Bd5 {[%emt 0:01:20]} Bd3 {[%emt 0:01:09]} 35. e6 {[%emt 0:06:09]} Bg6 {[%emt 0:00:01]} (35... fxe6 36. Bxe6+ Kh7 37. Qc8 $14) 36. Qd7 {[%emt 0:00:19]} Kf8 {[%emt 0:00:21]} 37. Qc8+ {[%emt 0:02:48]} Qe8 {[%emt 0:00:01]} 38. e7+ {[%emt 0:02:57]} Kxe7 {[%emt 0:00:01]} 39. Qc5+ {[%emt 0:00:09]} Kd8 $1 {[%emt 0:00:04]} ({Don't go for} 39... Kf6 $2 40. Qd6+ $18 (40. Qxa7 Bf5 $11) (40. Qxa7 Bf5 $11)) 40. Qxa7 {[%emt 0:00:07]} Qd7 {[%emt 0:01:44]} 41. Qc5 {[%emt 0:31:43]} Qe7 {[%emt 0:03:07]} 42. Qb6+ {[%emt 0:00:00]} Qc7 {[%emt 0:01:51]} 43. Qb4 {[%emt 0:00:00]} Ke8 {[%emt 0:01:31]} 44. Bb3 {[%emt 0:00:00]} Bf5 {[%emt 0:04:23]} 45. h4 {[%emt 0:00:00]} Be6 {[%emt 0:03:40]} 46. Bxe6 {[%emt 0:00:00]} 1/2-1/2

[Event "Danish Skakligaen 2024-25"]
[Site "Denmark"]
[Date "2024.11.03"]
[Round "2.1"]
[White "Kanov, Nikola"]
[Black "Nielsen, Viktor Haarmark"]
[Result "0-1"]
[ECO "B38"]
[WhiteElo "2400"]
[BlackElo "2343"]
[Annotator "RC"]
[PlyCount "136"]
[EventDate "2024.11.02"]
[EventType "team-tourn"]
[EventCountry "DEN"]
[SourceTitle "playchess.com"]
[Source "ChessBase"]
[SourceQuality "1"]
[TimeControl "40/5400+30:1800+30"]

1. c4 {[%emt 0:00:05]} c5 {[%emt 0:00:20]} 2. Nf3 {[%emt 0:00:16]} Nc6 {[%emt 0:00:19]} 3. d4 {[%emt 0:00:35]} cxd4 {[%emt 0:00:10]} 4. Nxd4 {[%emt 0:00:15]} g6 {[%emt 0:00:48]} 5. e4 {[%emt 0:03:30]} Bg7 {[%emt 0:00:07]} 6. Be3 {[%emt 0:00:42]} Nf6 {[%emt 0:00:44]} 7. Nc3 {[%emt 0:00:20]} d6 {[%emt 0:01:11]} 8. Be2 {[%emt 0:02:09]} O-O {[%emt 0:00:30]} 9. O-O {[%emt 0:04:41]} Bd7 {[%emt 0:00:33]} 10. f3 {[%emt 0:01:44]} Nxd4 {[%emt 0:05:39]} 11. Bxd4 {[%emt 0:00:46]} a5 {[%emt 0:00:29]} 12. b3 {[%emt 0:06:08]} Bc6 {[%emt 0:00:14]} 13. Qd2 {[%emt 0:00:55]} Nd7 {[%emt 0:00:54]} 14. Be3 {[%emt 0:01:04]} Nc5 {[%emt 0:00:33]} 15. Rab1 {[%emt 0:02:45]} e6 {[%emt 0:05:41]} 16. Rfd1 {[%emt 0:09:07]} Be5 {[%emt 0:01:02]} 17. Rbc1 {[%emt 0:07:33]} Qe7 {[%emt 0:08:49]} 18. Bf1 {[%emt 0:11:09]} Rad8 {[%emt 0:08:26]} 19. Ne2 {[%emt 0:10:54]} b6 {[%emt 0:01:15]} 20. Bg5 {[%emt 0:04:31]} Bf6 {[%emt 0:01:58]} 21. Bxf6 {[%emt 0:03:33]} Qxf6 {[%emt 0:00:03]} 22. b4 {[%emt 0:02:15]} axb4 {[%emt 0:09:52]} 23. Qxb4 {[%emt 0:00:10]} Ba4 {[%emt 0:00:15]} 24. Rd2 {[%emt 0:08:14]} Qg5 {[%emt 0:01:56]} 25. Qc3 {[%emt 0:07:25]} Rd7 {[%emt 0:07:20]} 26. Rb1 {[%emt 0:01:18]} Rb8 {[%emt 0:00:43]} 27. g3 {[%emt 0:02:20]} Bc6 {[%emt 0:03:47]} 28. h4 {[%emt 0:02:31]} Qe5 {[%emt 0:02:23]} 29. Qe3 {[%emt 0:01:18]} d5 {[%emt 0:04:40]} 30. cxd5 {[%emt 0:02:27]} exd5 {[%emt 0:00:13]} 31. Nd4 {[%emt 0:01:45]} Ba8 {[%emt 0:01:05]} 32. Kh2 {[%emt 0:02:34]} dxe4 {[%emt 0:01:33]} 33. f4 {[%emt 0:00:09]} Qf6 {[%emt 0:01:03]} 34. Rbd1 {[%emt 0:01:17]} Rbd8 {[%emt 0:00:36]} 35. Bb5 {[%emt 0:00:50]} Rd6 {[%emt 0:00:36]} 36. Bc4 {[%emt 0:00:12]} Nd3 {[%emt 0:06:37]} 37. Nb5 {[%emt 0:00:39]} R6d7 {[%emt 0:00:08]} 38. a4 {[%emt 0:00:51]} Qc6 {[%emt 0:02:28]} 39. Bb3 {[%emt 0:00:25]} Nc5 {[%emt 0:04:16]} 40. Nd4 {[%emt 0:00:35]} Qf6 {[%emt 0:00:57]} 41. Bc2 {[%emt 0:09:32]} Bb7 {[%emt 0:13:41]} 42. Kg1 {[%emt 0:07:12]} h5 {[%emt 0:07:58]} 43. f5 {[%emt 0:13:57]} Nd3 {[%emt 0:01:31]} 44. Ne2 {[%emt 0:01:10]} Qxf5 {[%emt 0:01:51]} 45. Bxd3 {[%emt 0:00:35]} Rxd3 {[%emt 0:15:19]} 46. Rxd3 {[%emt 0:00:06]} Rxd3 {[%emt 0:00:08]} 47. Rxd3 {[%emt 0:00:06]} exd3 {[%emt 0:00:06]} 48. Nf4 {[%emt 0:00:10]} Qe4 {[%emt 0:01:54]} 49. Kf2 {[%emt 0:01:30]} Qxa4 {[%emt 0:04:52]} 50. Qxd3 {[%emt 0:00:27]} Qc6 51. Qd8+ {[%emt 0:00:43]} Kg7 {[%emt 0:01:15]} 52. Qd4+ {[%emt 0:00:29]} Kh7 {[%emt 0:00:05]} 53. Qd3 {[%emt 0:00:31]} b5 {[%emt 0:00:17]} 54. g4 {[%emt 0:00:34]} hxg4 {[%emt 0:02:03]} 55. h5 {[%emt 0:00:19]} Qf3+ {[%emt 0:00:16]} 56. Qxf3 {[%emt 0:00:13]} gxf3 {[%emt 0:00:08]} 57. hxg6+ {[%emt 0:00:23]} fxg6 {[%emt 0:00:06]} 58. Nd3 {[%emt 0:00:07]} Kh6 {[%emt 0:00:22]} 59. Kg3 {[%emt 0:00:40]} Kg5 {[%emt 0:00:16]} 60. Nc5 {[%emt 0:00:33]} Bd5 {[%emt 0:00:10]} 61. Nd3 {[%emt 0:00:21]} Kf5 {[%emt 0:00:07]} 62. Nb4 {[%emt 0:00:44]} Be4 {[%emt 0:00:23]} 63. Kf2 {[%emt 0:00:33]} Kf4 {[%emt 0:00:12]} 64. Na6 {[%emt 0:00:17]} g5 {[%emt 0:01:07]} 65. Nc7 {[%emt 0:00:06]} b4 {[%emt 0:00:21]} 66. Ne6+ {[%emt 0:00:08]} Ke5 {[%emt 0:01:25]} 67. Nxg5 {[%emt 0:01:10]} b3 {[%emt 0:00:07]} 68. Ke3 {[%emt 0:01:11]} b2 {[%emt 0:00:22]} 0-1

[Event "Danish Skakligaen 2024-25"]
[Site "Denmark"]
[Date "2024.11.03"]
[Round "2.1"]
[White "Sloth, Jorn"]
[Black "Hector, Jonny"]
[Result "0-1"]
[ECO "A06"]
[WhiteElo "2295"]
[BlackElo "2431"]
[Annotator "TA"]
[PlyCount "130"]
[EventDate "2024.11.02"]
[EventType "team-tourn"]
[EventCountry "DEN"]
[SourceTitle "playchess.com"]
[Source "ChessBase"]
[SourceQuality "1"]
[TimeControl "40/5400+30:1800+30"]

{[%evp 12,130,45,33,50,45,56,59,59,66,54,57,64,61,70,66,73,65,95,64,80,45,98,35,43,19,12,17,16,35,20,0,12,10,0,0,0,0,0,0,0,0,22,20,30,21,14,18,26,0,22,16,21,20,22,0,7,8,16,0,0,0,0,0,0,0,0,0,0,0,0,0,0,0,0,0,0,0,0,0,0,0,0,0,0,0,0,0,0,0,-4,-560,-34,-93,-93,-1137,-8,-7,-7,-8,-8,-5149,-5128,-29980,-29981,-29981,-29982,-29982,-29983,-29983,-29984,-29984,-29985,-29985,-29986,-29986,-29987,-29987,-29988,-29988,-29989]} 1. Nf3 {[%emt 0:00:08]} d5 {[%emt 0:00:26]} 2. e3 {[%emt 0:00:17]} Nc6 {[%emt 0:02:21]} 3. Bb5 {[%emt 0:05:56]} e6 {[%emt 0:03:54]} 4. O-O $146 {[%emt 0:08:55]} ({Predecessor:} 4. b3 Nge7 5. Bb2 a6 6. Be2 Ng6 7. h4 Be7 8. h5 Bf6 9. d4 Nge7 10. Nc3 e5 11. dxe5 Nxe5 {1-0 Cvek,R (2518)-Kraus,T (2451) CZE-chT 1819 2018 (7.6)}) 4... Bd6 {[%emt 0:02:35]} 5. d4 {[%emt 0:06:03]} Nge7 {[%emt 0:01:39]} 6. b3 {[%emt 0:05:48] A06: Réti Opening: 1 Nf3 d5.} a6 {[%emt 0:05:22]} 7. Be2 {[%emt 0:00:14]} e5 {[%emt 0:00:55]} 8. dxe5 {[%emt 0:00:47]} Nxe5 {[%emt 0:00:30]} 9. Bb2 {[%emt 0:00:26]} f6 {[%emt 0:03:40]} 10. c4 {[%emt 0:05:14]} Be6 {[%emt 0:07:24]} 11. Nd4 {[%emt 0:05:02]} Bf7 {[%emt 0:04:42]} 12. cxd5 {[%emt 0:02:27]} Nxd5 {[%emt 0:03:42]} 13. Nf5 {[%emt 0:03:52]} Bf8 {[%emt 0:04:46]} 14. Nc3 {[%emt 0:16:42]} Qd7 {[%emt 0:11:00]} 15. Nxd5 {[%emt 0:02:43]} Bxd5 {[%emt 0:00:25]} 16. Qc2 {[%emt 0:00:31]} g6 {[%emt 0:03:53]} (16... Qc6 $14 17. Qxc6+ Nxc6) 17. Ng3 {[%emt 0:08:49]} ({White should try} 17. f4 $16 Qxf5 18. Qxf5 (18. Qxc7 $2 Rc8 $19) 18... gxf5 19. fxe5 fxe5 20. Rxf5) 17... Qc6 $14 {[%emt 0:03:08]} 18. Qxc6+ {[%emt 0:01:54]} Bxc6 {[%emt 0:01:30]} 19. Rfd1 {[%emt 0:02:28]} Bd6 {[%emt 0:02:15]} 20. Rac1 {[%emt 0:00:47]} (20. f4 $5 Nd7 $8 21. Rac1 $11) 20... Rf8 {[%emt 0:06:49]} 21. Bd4 {[%emt 0:04:11]} Ke7 {[%emt 0:03:17]} 22. f3 {[%emt 0:03:21]} f5 {[%emt 0:05:16]} 23. Bc5 {[%emt 0:02:04]} Rfd8 {[%emt 0:02:46]} 24. Bxd6+ {[%emt 0:00:36]} Rxd6 {[%emt 0:01:25]} 25. Rxd6 {[%emt 0:00:05]} Kxd6 {[%emt 0:00:19]} 26. Kf2 {[%emt 0:01:10]} Bb5 {[%emt 0:02:06]} 27. f4 {[%emt 0:04:11]} Nc6 $1 {[%emt 0:01:25]} 28. e4 {[%emt 0:01:08]} Bxe2 {[%emt 0:03:29]} 29. Kxe2 {[%emt 0:00:17]} Nd4+ {[%emt 0:02:57]} 30. Kd3 {[%emt 0:03:50]} (30. Ke3 $5 c5 $8 31. Ne2 Nxe2 32. e5+ Kc6 33. Kxe2 $11) 30... Ne6 {[%emt 0:02:11]} 31. Ke3 {[%emt 0:00:15]} fxe4 {[%emt 0:03:22]} 32. Nxe4+ {[%emt 0:00:50]} Ke7 {[%emt 0:00:03]} 33. Nc5 {[%emt 0:01:29]} Nxc5 {[%emt 0:00:49]} 34. Rxc5 {[%emt 0:00:03]} c6 {[%emt 0:00:14]} 35. Ke4 {[%emt 0:02:55]} Rd8 {[%emt 0:00:35]} 36. Rc2 {[%emt 0:00:21]} Rd1 {[%emt 0:00:43]} 37. g4 {[%emt 0:00:54]} Rg1 {[%emt 0:02:02]} 38. Kf3 {[%emt 0:00:53]} Rf1+ {[%emt 0:00:40]} 39. Ke4 {[%emt 0:00:12]} Ke6 {[%emt 0:00:33]} 40. Re2 {[%emt 0:02:07]} c5 {[%emt 0:01:12]} 41. Rc2 {[%emt 0:10:01]} b6 {[%emt 0:01:41]} 42. b4 {[%emt 0:03:39]} Re1+ {[%emt 0:01:08]} 43. Kf3 {[%emt 0:00:13]} (43. Kd3 Rd1+ (43... cxb4 44. Rc6+ Kd5 45. Rxb6 $11) 44. Ke2 Rd4 (44... Rh1 45. Ke3 $11)) 43... Kd5 {[%emt 0:00:45]} 44. bxc5 {[%emt 0:01:12]} bxc5 {[%emt 0:00:08]} 45. Rd2+ {[%emt 0:02:52]} Kc6 {[%emt 0:00:29]} 46. Rc2 {[%emt 0:01:12]} a5 {[%emt 0:02:43]} 47. f5 {[%emt 0:04:50]} gxf5 {[%emt 0:01:19]} 48. gxf5 {[%emt 0:00:03]} Kd5 {[%emt 0:00:30]} 49. Kf4 {[%emt 0:01:33]} Rf1+ {[%emt 0:01:57]} 50. Kg5 {[%emt 0:00:34]} c4 {[%emt 0:00:24]} 51. Kf6 $2 {[%emt 0:03:00][%mdl 8192]} (51. h4 $11 {and White has nothing to worry.}) 51... Rf3 $2 {[%emt 0:03:25]} (51... Kd4 $19 52. Rd2+ Ke3) 52. h4 {[%emt 0:03:39]} (52. Rc1 $1 $15) 52... c3 $17 {[%emt 0:01:54]} 53. Ke7 $2 {[%emt 0:00:42][%mdl 8192]} (53. h5 $17) 53... Re3+ $2 {[%emt 0:06:02]} ({Not} 53... Rxf5 54. Rxc3 Rf4 55. Rg3 $11) ({Black should play} 53... Kc4 $19 54. f6 Kd3) 54. Kf7 $11 {[%emt 0:01:37]} Kd4 {[%emt 0:02:27]} (54... Kc4 $5 55. f6 $8 Kd3 $15) 55. f6 {[%emt 0:00:44]} Kd3 {[%emt 0:00:12]} 56. Rxc3+ $4 {[%emt 0:01:11][%mdl 8192]} (56. Rc1 $11) 56... Kxc3 $19 {[%emt 0:00:09]} 57. Kg7 {[%emt 0:00:21]} h5 {[%emt 0:01:18]} 58. f7 {[%emt 0:00:34]} Rg3+ {[%emt 0:00:12]} 59. Kh7 {[%emt 0:00:31]} Rf3 {[%emt 0:00:08]} 60. Kg7 {[%emt 0:00:09]} a4 61. f8=Q {[%emt 0:00:28]} Rxf8 {[%emt 0:00:27]} 62. Kxf8 {[%emt 0:00:09]} a3 {[%emt 0:00:08]} 63. Kg7 {[%emt 0:00:05]} Kb2 {[%emt 0:00:06]} 64. Kg6 {[%emt 0:00:08]} Kxa2 {[%emt 0:00:08]} 65. Kxh5 {[%emt 0:00:08]} Kb3 {[%emt 0:00:09]} 0-1